bitfinex/quotes_SOLUSD_20241103
["timestamp","ask_amount","ask_price","bid_price","bid_amount"]
[1730622284748,14.34084786,163.41,163.36,6.1214]
[1730622284953,8.22134786,163.4,163.36,6.1214]
[1730622285674,14.34124786,163.4,163.36,6.1214]
[1730622287268,8.22134786,163.41,163.36,6.1214]
[1730622288652,6.1199,163.4,163.36,6.1214]
[1730622290176,6.1199,163.4,163.36,8.22134786]
[1730622290869,6.1199,163.4,163.31,6.1025]
[1730622290870,8.22134786,163.42,163.37,8.22134786]
[1730622291074,14.34084786,163.42,163.37,8.22134786]
[1730622294176,6.1195,163.42,163.37,8.22134786]
[1730622294780,6.1195,163.42,163.38,8.22134786]
[1730622294962,8.22134786,163.44,163.38,8.22134786]
[1730622295282,14.33974786,163.44,163.38,8.22134786]
[1730622296184,14.33974786,163.44,163.38,14.34174786]
[1730622302080,6.1184,163.44,163.4,8.22134786]
[1730622303166,6.118,163.45,163.4,8.22134786]
[1730622304587,6.118,163.45,163.4,14.34114786]
[1730622304763,6.118,163.45,163.41,8.22134786]
[1730622305279,14.33824786,163.48,163.42,8.22134786]
[1730622305462,14.33824786,163.48,163.43,8.22134786]
[1730622305463,6.1169,163.48,163.43,8.22134786]
[1730622306373,14.33824786,163.48,163.43,8.22134786]
[1730622310689,6.1165,163.49,163.44,8.22134786]
[1730622310880,6.1161,163.51,163.47,8.22134786]
[1730622311570,6.1161,163.51,163.46,8.22134786]
[1730622312389,14.33744786,163.51,163.46,8.22134786]
[1730622312766,8.22134786,163.5,163.45,8.22134786]
[1730622312961,8.22134786,163.49,163.44,8.22134786]
[1730622313891,6.1169,163.48,163.44,8.22134786]
[1730622316292,8.22134786,163.5,163.44,8.22134786]
[1730622317662,8.22134786,163.5,163.44,14.33964786]
[1730622317879,8.22134786,163.5,163.45,8.22134786]
[1730622319569,6.1165,163.49,163.45,8.22134786]
[1730622320480,8.22134786,163.51,163.45,8.22134786]
[1730622320681,6.1162,163.5,163.45,8.22134786]
[1730622321899,8.22134786,163.5,163.45,8.22134786]
[1730622322987,6.1165,163.49,163.45,8.22134786]
[1730622324786,6.1165,163.49,163.44,8.22134786]
[1730622325990,6.1165,163.49,163.44,14.33964786]
[1730622327090,6.1165,163.49,163.45,8.22134786]
[1730622328193,14.33714786,163.51,163.46,8.22134786]
[1730622328395,6.1158,163.51,163.46,8.22134786]
[1730622328891,6.1158,163.51,163.47,8.22134786]
[1730622330700,6.1158,163.51,163.48,8.22134786]
[1730622330890,0.305407,163.52,163.49,8.22134786]
[1730622331308,0.305407,163.52,163.5,8.22134786]
[1730622331594,0.305407,163.52,163.47,6.1172]
[1730622331595,0.305407,163.52,163.49,8.22134786]
[1730622331809,0.305407,163.52,163.5,8.22134786]
[1730622339407,0.305407,163.52,163.51,8.22134786]
[1730622359601,0.305407,163.52,163.51,14.33714786]
[1730622364225,0.305407,163.52,163.51,8.22134786]
[1730622364433,0.305407,163.52,163.5,14.33744786]
[1730622364626,0.305407,163.52,163.51,8.22134786]
[1730622368323,0.305407,163.52,163.51,14.33714786]
[1730622368836,0.305407,163.52,163.51,34.33714786]
[1730622379146,0.305407,163.52,163.51,14.33714786]
[1730622385661,0.305407,163.52,163.51,6.1158]
[1730622390650,0.305407,163.52,163.51,8.22134786]
[1730622392042,0.305407,163.52,163.51,14.33714786]
[1730622401436,0.305407,163.52,163.51,8.22134786]
[1730622401841,0.305407,163.52,163.5,8.22134786]
[1730622403941,0.305407,163.52,163.51,8.22134786]
[1730622405450,0.305407,163.52,163.51,14.33714786]
[1730622416053,3.95701616,163.52,163.51,14.33714786]
[1730622416271,3.95701616,163.52,163.51,6.1158]
[1730622417476,3.95701616,163.52,163.51,8.22134786]
[1730622418481,3.95701616,163.52,163.51,14.33714786]
[1730622420459,0.305407,163.52,163.51,14.33714786]
[1730622422256,3.95697474,163.52,163.51,14.33714786]
[1730622426282,0.305407,163.52,163.51,14.33714786]
[1730622437794,0.305407,163.52,163.51,34.33714786]
[1730622442711,14.64235486,163.52,163.44,8.221348]
[1730622442910,6.421007,163.52,163.44,6.1184]
[1730622443214,6.421007,163.52,163.41,0.86056143]
[1730622443388,6.421007,163.52,163.42,6.1188]
[1730622444285,6.421007,163.52,163.41,0.86056143]
[1730622444286,23.89134786,163.47,163.41,0.86056143]
[1730622444488,8.22134786,163.44,163.41,0.86056143]
[1730622445307,8.22134786,163.45,163.41,0.86056143]
[1730622446420,14.33944786,163.45,163.41,0.86056143]
[1730622446987,6.1181,163.45,163.41,0.86056143]
[1730622447891,21.7873,163.47,163.42,8.22134786]
[1730622449317,30.00864786,163.47,163.41,9.08190929]
[1730622449489,30.00864786,163.47,163.41,15.20140929]
[1730622449691,21.7873,163.47,163.42,8.22134786]
[1730622450109,15.67,163.47,163.43,8.22134786]
[1730622451094,15.67,163.47,163.43,14.34014786]
[1730622452113,15.67,163.47,163.42,8.22134786]
[1730622454114,15.67,163.47,163.43,6.1188]
[1730622458220,8.22134786,163.46,163.41,0.86056143]
[1730622458513,8.22134786,163.46,163.41,6.97986143]
[1730622458931,8.22134786,163.46,163.41,0.86056143]
[1730622460718,14.33924786,163.46,163.41,0.86056143]
[1730622462322,6.1179,163.46,163.41,9.08190929]
[1730622462510,6.1179,163.46,163.42,8.22134786]
[1730622462918,15.67,163.47,163.42,8.22134786]
[1730622463614,21.7874,163.47,163.42,8.22134786]
[1730622464501,21.7874,163.47,163.42,14.34014786]
[1730622469531,30.00874786,163.47,163.42,14.34014786]
[1730622472339,21.7874,163.47,163.42,14.34014786]
[1730622474135,15.67,163.47,163.43,8.22134786]
[1730622474440,6.1166,163.49,163.44,8.22134786]
[1730622475313,14.33794786,163.49,163.43,14.33994786]
[1730622475635,8.22134786,163.48,163.43,14.33994786]
[1730622476640,8.22134786,163.49,163.44,8.22134786]
[1730622476832,0.305407,163.52,163.48,8.22134786]
[1730622477442,14.64235486,163.52,163.46,8.22134786]
[1730622478439,14.64235486,163.52,163.47,6.1173]
[1730622478733,8.22134786,163.49,163.44,8.22134786]
[1730622479833,8.22134786,163.49,163.45,6.118]
[1730622481326,8.22134786,163.5,163.45,6.118]
[1730622482146,8.22134786,163.5,163.45,14.33934786]
[1730622483442,14.33744786,163.51,163.45,14.33934786]
[1730622484015,6.1161,163.51,163.46,8.22134786]
[1730622486725,0.305407,163.52,163.48,8.22134786]
[1730622486948,0.305407,163.52,163.49,8.22134786]
[1730622488351,3.6429958,163.51,163.49,14.33784786]
[1730622488537,0.305407,163.52,163.49,14.33784786]
[1730622488850,3.6430531,163.51,163.49,14.33784786]
[1730622489027,0.305407,163.52,163.49,14.33784786]
[1730622489350,3.64480851,163.51,163.49,14.33784786]
[1730622489526,0.305407,163.52,163.49,14.33784786]
[1730622489726,3.64482463,163.51,163.5,8.22134786]
[1730622489922,0.305407,163.52,163.5,8.22134786]
[1730622490232,0.305407,163.52,163.48,8.22134786]
[1730622490422,3.64538269,163.51,163.48,8.22134786]
[1730622490621,0.305407,163.52,163.47,8.22134786]
[1730622491142,0.305407,163.52,163.48,8.22134786]
[1730622491843,0.305407,163.52,163.49,6.1165]
[1730622492037,0.305407,163.52,163.49,14.33784786]
[1730622493832,0.305407,163.52,163.5,8.22134786]
[1730622494238,0.305407,163.52,163.51,28.22134786]
[1730622495523,0.305407,163.52,163.51,34.33714786]
[1730622507946,0.305407,163.52,163.51,58.11403186]
[1730622510855,0.305407,163.52,163.51,58.21403186]
[1730622515336,0.305407,163.52,163.51,6.1158]
[1730622515650,0.305407,163.52,163.5,6.1162]
[1730622515852,0.305407,163.52,163.51,8.22134786]
[1730622517339,0.305407,163.52,163.51,14.33714786]
[1730622529174,0.305407,163.52,163.5,8.22134786]
[1730622530455,0.305407,163.52,163.51,6.1158]
[1730622531131,0.305407,163.52,163.51,14.33714786]
[1730622534667,0.305407,163.52,163.51,34.33714786]
[1730622538747,0.305407,163.6,163.54,0.1]
[1730622538950,0.305407,163.6,163.59,8.22134786]
[1730622539160,3.95398395,163.6,163.59,8.22134786]
[1730622539361,3.95398395,163.6,163.58,8.22134786]
[1730622539663,3.64857695,163.59,163.52,20.0]
[1730622539856,3.64857695,163.58,163.55,8.22134786]
[1730622540059,3.64857695,163.57,163.54,20.0]
[1730622540362,3.64857695,163.56,163.53,14.33634786]
[1730622540563,8.22134786,163.59,163.53,14.33634786]
[1730622540745,11.86878846,163.58,163.53,14.33634786]
[1730622540948,3.6474406,163.57,163.53,14.33634786]
[1730622541152,14.33424786,163.59,163.53,14.33634786]
[1730622541342,3.64716814,163.56,163.53,14.33634786]
[1730622541665,8.22134786,163.59,163.53,14.33634786]
[1730622541863,8.22134786,163.59,163.53,8.22134786]
[1730622542360,8.22134786,163.59,163.54,8.22134786]
[1730622542667,21.08025486,163.6,163.54,8.22134786]
[1730622543269,21.08025486,163.6,163.55,8.22134786]
[1730622544854,21.08025486,163.6,163.48,6.733]
[1730622544855,8.22134786,163.59,163.53,8.22134786]
[1730622545446,8.22134786,163.59,163.54,8.22134786]
[1730622546145,0.305407,163.6,163.58,8.22134786]
[1730622546339,0.305407,163.6,163.59,8.22134786]
[1730622548254,0.305407,163.6,163.59,14.33414786]
[1730622559357,14.13735486,163.65,163.59,14.33414786]
[1730622559557,14.13735486,163.65,163.6,8.22134786]
[1730622560862,6.1106,163.65,163.6,8.22134786]
[1730622565857,6.1106,163.65,163.61,8.22134786]
[1730622566266,6.1106,163.65,163.6,8.22134786]
[1730622566972,6.1106,163.65,163.6,14.33354786]
[1730622570989,6.1106,163.65,163.61,8.22134786]
[1730622571164,6.1102,163.66,163.62,8.22134786]
[1730622571366,15.409,163.67,163.63,8.22134786]
[1730622571761,21.519,163.67,163.63,8.22134786]
[1730622572971,21.519,163.67,163.62,8.22134786]
[1730622574685,21.519,163.67,163.63,8.22134786]
[1730622574982,21.519,163.67,163.62,8.22134786]
[1730622575487,6.11,163.67,163.63,8.22134786]
[1730622576180,6.414907,163.68,163.63,8.22134786]
[1730622577391,6.414907,163.68,163.64,8.22134786]
[1730622587578,14.63625486,163.68,163.63,14.33234786]
[1730622588391,6.414907,163.68,163.63,14.33234786]
[1730622590178,6.414907,163.68,163.59,6.5413]
[1730622590179,14.63625486,163.68,163.62,8.22134786]
[1730622590794,6.414907,163.68,163.63,8.22134786]
[1730622591178,6.414907,163.68,163.64,8.22134786]
[1730622593398,6.414907,163.68,163.63,8.22134786]
[1730622593603,6.414907,163.68,163.62,8.22134786]
[1730622594296,6.414907,163.68,163.63,8.22134786]
[1730622594695,6.414907,163.68,163.65,8.22134786]
[1730622595395,6.414907,163.68,163.64,8.22134786]
[1730622603004,14.63625486,163.68,163.62,8.22134786]
[1730622603384,6.414907,163.68,163.62,8.22134786]
[1730622603699,6.414907,163.68,163.64,8.22134786]
[1730622604040,6.414907,163.68,163.61,6.1118]
[1730622604041,0.305407,163.68,163.65,8.22134786]
[1730622607609,0.305407,163.68,163.66,8.22134786]
[1730622609707,6.414907,163.68,163.65,8.22134786]
[1730622610014,6.414907,163.68,163.63,14.33234786]
[1730622610395,6.414907,163.68,163.64,8.22134786]
[1730622612117,6.414907,163.68,163.64,14.33224786]
[1730622612419,6.414907,163.68,163.65,8.22134786]
[1730622612606,6.414907,163.68,163.59,6.6413]
[1730622612607,6.414907,163.68,163.63,8.22134786]
[1730622612798,8.22134786,163.67,163.62,8.22134786]
[1730622613813,8.22134786,163.66,163.6,8.22134786]
[1730622614004,8.22134786,163.64,163.58,8.22134786]
[1730622614213,22.4592,163.66,163.55,8.22134786]
[1730622614214,8.22134786,163.6,163.55,8.22134786]
[1730622614590,0.1,163.65,163.54,22.0132]
[1730622614591,22.4592,163.66,163.58,8.22134786]
[1730622614795,22.4592,163.66,163.59,8.22134786]
[1730622615009,8.22134786,163.65,163.59,8.22134786]
[1730622615629,8.22134786,163.64,163.59,8.22134786]
[1730622615829,14.33234786,163.64,163.59,8.22134786]
[1730622616118,14.33234786,163.64,163.58,14.33414786]
[1730622616614,8.22134786,163.63,163.58,14.33414786]
[1730622616802,8.22134786,163.62,163.56,8.22134786]
[1730622617204,8.22134786,163.63,163.57,8.22134786]
[1730622618019,8.22134786,163.62,163.57,8.22134786]
[1730622618516,14.33334786,163.62,163.57,8.22134786]
[1730622619321,8.22134786,163.64,163.58,8.22134786]
[1730622619509,6.1106,163.65,163.6,8.22134786]
[1730622619815,14.33194786,163.65,163.6,8.22134786]
[1730622620319,6.1106,163.65,163.6,8.22134786]
[1730622620617,14.33194786,163.65,163.6,14.33354786]
[1730622620799,6.1106,163.65,163.6,14.33354786]
[1730622622524,6.1106,163.65,163.6,8.22134786]
[1730622624123,6.1106,163.65,163.6,14.33354786]
[1730622624424,8.22134786,163.63,163.57,14.33484786]
[1730622626543,6.1112,163.64,163.59,8.22134786]
[1730622628606,24.59794786,163.66,163.61,8.22134786]
[1730622628807,30.70814786,163.66,163.61,8.22134786]
[1730622629043,30.70814786,163.66,163.6,8.22134786]
[1730622629225,8.22134786,163.65,163.6,8.22134786]
[1730622629531,8.22134786,163.65,163.59,14.33404786]
[1730622629737,8.22134786,163.65,163.59,8.22134786]
[1730622629926,14.33194786,163.65,163.59,8.22134786]
[1730622632031,6.1106,163.65,163.61,8.22134786]
[1730622635922,6.1106,163.65,163.61,14.33334786]
[1730622636239,6.1102,163.66,163.62,8.22134786]
[1730622637113,6.1098,163.67,163.62,14.33294786]
[1730622637314,6.1098,163.67,163.63,8.22134786]
[1730622637712,0.305407,163.68,163.64,8.22134786]
[1730622639221,0.305407,163.68,163.64,14.33224786]
[1730622641939,6.415007,163.68,163.64,14.33224786]
[1730622645547,6.415007,163.68,163.63,8.22134786]
[1730622646434,6.415007,163.68,163.63,14.33234786]
[1730622646435,0.305407,163.68,163.63,14.33234786]
[1730622646619,0.305407,163.68,163.64,8.22134786]
[1730622646818,0.305407,163.68,163.65,8.22134786]
[1730622647027,0.305407,163.68,163.66,8.22134786]
[1730622648039,0.305407,163.68,163.65,14.33154786]
[1730622649537,0.305407,163.68,163.65,6.1102]
[1730622651139,0.305407,163.68,163.65,14.33154786]
[1730622654338,0.305407,163.68,163.64,8.22134786]
[1730622654645,8.22134786,163.67,163.62,6.1117]
[1730622654942,6.414907,163.68,163.62,6.1117]
[1730622654943,8.22134786,163.66,163.62,6.1117]
[1730622657639,14.33134786,163.67,163.62,6.1117]
[1730622657842,6.11,163.67,163.63,8.22134786]
[1730622659941,6.414907,163.68,163.63,14.33244786]
[1730622660242,0.305407,163.68,163.65,8.22134786]
[1730622660922,0.305407,163.68,163.65,14.33184786]
[1730622666641,0.305407,163.68,163.65,6.1105]
[1730622669432,0.305407,163.68,163.64,14.33214786]
[1730622671532,0.305407,163.68,163.67,8.22134786]
[1730622671944,0.305407,163.68,163.65,20.0]
[1730622672252,0.305407,163.68,163.64,6.1108]
[1730622672425,0.305407,163.68,163.65,8.22134786]
[1730622672826,8.52675486,163.68,163.62,14.33304786]
[1730622673026,8.22134786,163.65,163.59,8.22134786]
[1730622673241,8.22134786,163.64,163.58,8.22134786]
[1730622673437,8.22134786,163.63,163.58,8.22134786]
[1730622673656,8.22134786,163.65,163.54,6.1147]
[1730622673851,8.22134786,163.66,163.61,8.22134786]
[1730622675048,14.33164786,163.66,163.61,8.22134786]
[1730622675749,14.33164786,163.66,163.6,6.1122]
[1730622675750,8.22134786,163.64,163.6,6.1122]
[1730622675952,8.22134786,163.64,163.59,8.22134786]
[1730622676122,8.22134786,163.63,163.58,8.22134786]
[1730622676326,8.22134786,163.63,163.57,8.22134786]
[1730622676732,14.33234786,163.64,163.58,8.22134786]
[1730622676933,6.111,163.64,163.59,8.22134786]
[1730622677153,14.33234786,163.64,163.58,8.22134786]
[1730622677445,14.33234786,163.64,163.58,14.33414786]
[1730622677955,8.22134786,163.62,163.58,6.1128]
[1730622678750,8.22134786,163.62,163.56,8.22134786]
[1730622679068,8.22134786,163.61,163.55,8.22134786]
[1730622679246,8.22134786,163.6,163.55,8.22134786]
[1730622679552,8.22134786,163.6,163.56,6.1139]
[1730622679738,14.33344786,163.61,163.56,6.1139]
[1730622681253,14.33344786,163.61,163.55,14.33554786]
[1730622681440,14.33314786,163.62,163.56,8.22134786]
[1730622684154,14.33314786,163.62,163.56,14.33494786]
[1730622684553,14.33314786,163.62,163.56,6.1136]
[1730622684762,14.33314786,163.62,163.57,8.22134786]
[1730622685555,14.33314786,163.62,163.57,14.33484786]
[1730622686267,8.22134786,163.61,163.57,6.1135]
[1730622688856,8.22134786,163.62,163.56,8.22134786]
[1730622690059,8.22134786,163.61,163.56,8.22134786]
[1730622690249,8.22134786,163.61,163.57,6.1135]
[1730622691254,8.22134786,163.61,163.56,8.22134786]
[1730622692339,15.4884,163.67,163.6,8.22134786]
[1730622692559,15.4884,163.67,163.63,8.22134786]
[1730622692735,21.5982,163.67,163.62,8.22134786]
[1730622692936,29.81954786,163.67,163.61,8.22134786]
[1730622693135,29.81954786,163.67,163.58,21.9392]
[1730622693136,8.22134786,163.66,163.6,8.22134786]
[1730622693358,21.5982,163.67,163.6,6.1124]
[1730622694363,29.81954786,163.67,163.62,8.22134786]
[1730622698062,29.81954786,163.67,163.61,8.22134786]
[1730622698252,8.22134786,163.66,163.61,8.22134786]
[1730622699466,29.81954786,163.67,163.61,14.33324786]
[1730622701244,29.81954786,163.67,163.61,8.22134786]
[1730622701574,8.22134786,163.66,163.61,8.22134786]
[1730622702374,14.33164786,163.66,163.61,8.22134786]
[1730622708564,14.33164786,163.66,163.6,14.33364786]
[1730622711854,6.1103,163.66,163.61,14.33334786]
[1730622712454,14.33164786,163.66,163.61,6.112]
[1730622713652,14.33164786,163.66,163.6,8.22134786]
[1730622713851,14.33164786,163.66,163.6,14.33374786]
[1730622719158,6.1103,163.66,163.6,14.33374786]
[1730622719365,8.22134786,163.61,163.55,6.1143]
[1730622719568,8.22134786,163.58,163.53,6.1148]
[1730622720262,8.22134786,163.59,163.53,14.33614786]
[1730622720469,8.22134786,163.6,163.54,8.22134786]
[1730622720660,8.22134786,163.6,163.55,6.1143]
[1730622720861,8.22134786,163.61,163.55,14.33564786]
[1730622721062,8.22134786,163.62,163.55,14.33564786]
[1730622721265,8.22134786,163.63,163.57,8.22134786]
[1730622722087,8.22134786,163.62,163.56,8.22134786]
[1730622722462,8.22134786,163.62,163.56,14.33504786]
[1730622723171,8.22134786,163.61,163.56,6.1137]
[1730622723563,8.22134786,163.61,163.55,8.22134786]
[1730622726181,8.22134786,163.61,163.56,6.1139]
[1730622727481,8.22134786,163.61,163.55,8.22134786]
[1730622729573,8.22134786,163.61,163.56,6.1139]
[1730622732672,14.33344786,163.61,163.56,6.1139]
[1730622733994,8.22134786,163.6,163.56,6.1139]
[1730622734190,8.22134786,163.58,163.52,8.22134786]
[1730622734375,8.22134786,163.57,163.52,20.0]
[1730622734689,8.22134786,163.57,163.52,28.22134786]
[1730622735089,8.22134786,163.57,163.52,8.22134786]
[1730622735294,8.22134786,163.57,163.52,14.33634786]
[1730622735478,8.22134786,163.58,163.52,14.33634786]
[1730622736177,8.22134786,163.58,163.53,8.22134786]
[1730622736376,14.33444786,163.59,163.53,8.22134786]
[1730622736601,14.33444786,163.59,163.53,14.33634786]
[1730622736902,8.22134786,163.65,163.58,8.22134786]
[1730622737188,8.22134786,163.64,163.59,8.22134786]
[1730622737493,6.1106,163.65,163.55,15.1387]
[1730622738091,8.22134786,163.64,163.58,8.22134786]
[1730622738274,23.776884,163.63,163.58,8.22134786]
[1730622738477,6.1117,163.62,163.58,8.22134786]
[1730622739207,6.1117,163.62,163.57,8.22134786]
[1730622740692,6.1106,163.65,163.6,8.22134786]
[1730622742067,14.33194786,163.65,163.6,8.22134786]
[1730622742590,14.33194786,163.65,163.59,14.33374786]
[1730622743797,38.10933186,163.64,163.58,8.22134786]
[1730622744893,38.10933186,163.64,163.58,14.33414786]
[1730622747008,31.99823186,163.64,163.58,14.33414786]
[1730622747172,23.776884,163.64,163.59,8.22134786]
[1730622747377,31.99823186,163.64,163.58,14.33414786]
[1730622748984,38.10953186,163.64,163.58,8.22134786]
[1730622749302,8.22134786,163.62,163.57,8.22134786]
[1730622749602,8.22134786,163.62,163.56,8.22134786]
[1730622749989,8.22134786,163.61,163.56,14.33524786]
[1730622750189,8.22134786,163.6,163.54,8.22134786]
[1730622750493,31.99823186,163.61,163.55,8.22134786]
[1730622750895,23.776884,163.61,163.56,8.22134786]
[1730622751090,6.1118,163.62,163.57,8.22134786]
[1730622752298,6.1118,163.62,163.57,14.33474786]
[1730622752682,16.0964,163.66,163.59,8.22134786]
[1730622752683,14.33194786,163.65,163.59,8.22134786]
[1730622752886,23.776884,163.64,163.59,8.22134786]
[1730622753388,23.776884,163.64,163.6,8.22134786]
[1730622753709,23.776884,163.64,163.59,8.22134786]
[1730622753887,23.776884,163.64,163.59,14.33394786]
[1730622754307,6.1101,163.67,163.62,8.22134786]
[1730622755403,23.776884,163.67,163.63,8.22134786]
[1730622755904,23.776884,163.67,163.63,14.33254786]
[1730622756505,38.10803186,163.67,163.61,8.22134786]
[1730622756701,8.22134786,163.66,163.61,8.22134786]
[1730622756886,38.10803186,163.67,163.61,8.22134786]
[1730622758515,38.10803186,163.67,163.62,6.1117]
[1730622760605,29.886684,163.67,163.62,8.22134786]
[1730622760832,0.305407,163.68,163.63,8.22134786]
[1730622761106,24.082291,163.68,163.63,8.22134786]
[1730622761315,24.082291,163.68,163.64,8.22134786]
[1730622762091,24.082291,163.68,163.64,14.33204786]
[1730622763102,0.305407,163.68,163.65,8.22134786]
[1730622764207,0.305407,163.68,163.66,6.1102]
[1730622764615,0.305407,163.68,163.66,14.33154786]
[1730622765914,0.305407,163.68,163.67,8.22134786]
[1730622767206,0.305407,163.68,163.67,14.33114786]
[1730622768314,0.305407,163.68,163.67,6.1098]
[1730622769209,0.305407,163.68,163.66,8.22134786]
[1730622770297,0.305407,163.68,163.66,14.33124786]
[1730622774625,0.305407,163.68,163.65,6.1105]
[1730622776735,0.305407,163.68,163.65,8.22134786]
[1730622777020,0.305407,163.68,163.66,8.22134786]
[1730622778822,0.305407,163.68,163.66,14.33154786]
[1730622780206,0.305407,163.68,163.66,6.1102]
[1730622780911,0.305407,163.68,163.65,8.22134786]
[1730622784201,0.305407,163.68,163.66,8.22134786]
[1730622784524,0.305407,163.68,163.67,8.22134786]
[1730622784910,14.63615486,163.68,163.62,8.22134786]
[1730622785103,8.22134786,163.67,163.62,8.22134786]
[1730622785308,14.63615486,163.68,163.62,8.22134786]
[1730622786216,23.776884,163.67,163.62,8.22134786]
[1730622786419,8.22134786,163.66,163.6,8.22134786]
[1730622786724,23.776884,163.65,163.6,8.22134786]
[1730622787230,23.776884,163.6,163.52,14.33644786]
[1730622787525,23.776884,163.6,163.49,6.1165]
[1730622787725,23.776884,163.57,163.52,8.22134786]
[1730622789712,31.99823186,163.57,163.51,8.22134786]
[1730622789924,38.11193186,163.57,163.51,8.22134786]
[1730622790112,29.890584,163.57,163.52,8.22134786]
[1730622791018,23.776884,163.57,163.52,8.22134786]
[1730622791218,23.776884,163.57,163.52,14.33664786]
[1730622792727,29.890384,163.57,163.52,14.33664786]
[1730622793227,38.11173186,163.57,163.51,8.22134786]
[1730622794608,38.11173186,163.57,163.51,14.33684786]
[1730622797122,8.22134786,163.56,163.5,8.22134786]
[1730622797328,8.22134786,163.54,163.49,6.1165]
[1730622797529,8.22134786,163.53,163.49,6.1165]
[1730622797925,23.776884,163.52,163.47,14.33824786]
[1730622798617,23.776884,163.52,163.48,8.22134786]
[1730622799425,23.776884,163.52,163.48,14.33814786]
[1730622799623,23.776884,163.52,163.48,6.1168]
[1730622800433,31.99823186,163.52,163.48,6.1168]
[1730622801253,8.22134786,163.54,163.49,8.22134786]
[1730622801535,31.99823186,163.55,163.49,8.22134786]
[1730622802618,38.11253186,163.55,163.49,14.33754786]
[1730622803928,10.02060573,163.6,163.52,8.22134786]
[1730622804233,48.05569144,163.62,163.5,22.7257]
[1730622804234,23.39164786,163.62,163.56,8.22134786]
[1730622804441,8.22134786,163.6,163.54,8.22134786]
[1730622804638,0.1,163.61,163.5,22.7257]
[1730622804823,0.1,163.61,163.5,16.0776]
[1730622805230,8.22134786,163.57,163.51,8.22134786]
[1730622805422,23.776884,163.56,163.51,8.22134786]
[1730622806015,8.22134786,163.53,163.48,8.22134786]
[1730622806226,8.22134786,163.52,163.47,8.22134786]
[1730622806424,8.22134786,163.52,163.47,6.1173]
[1730622807421,8.22134786,163.53,163.47,14.33864786]
[1730622807638,6.1146,163.55,163.47,14.33864786]
[1730622807639,8.22134786,163.54,163.48,8.22134786]
[1730622807942,23.776884,163.53,163.48,8.22134786]
[1730622809344,8.22134786,163.55,163.49,14.33784786]
[1730622810219,8.22134786,163.54,163.49,6.1165]
[1730622810620,8.22134786,163.55,163.49,8.22134786]
[1730622811130,8.22134786,163.56,163.5,8.22134786]
[1730622811542,8.22134786,163.57,163.51,8.22134786]
[1730622811852,31.99823186,163.57,163.51,8.22134786]
[1730622813251,8.22134786,163.57,163.51,8.22134786]
[1730622813543,6.1132,163.58,163.48,6.6481]
[1730622813544,14.33454786,163.58,163.52,14.33674786]
[1730622815745,8.22134786,163.57,163.52,14.33674786]
[1730622816630,8.22134786,163.56,163.52,6.1154]
[1730622818353,14.33494786,163.57,163.52,6.1154]
[1730622819528,8.22134786,163.56,163.5,8.22134786]
[1730622819836,14.33494786,163.57,163.51,8.22134786]
[1730622821254,14.33494786,163.57,163.52,6.1154]
[1730622823834,6.1136,163.57,163.52,8.22134786]
[1730622824245,14.33494786,163.57,163.51,8.22134786]
[1730622825657,14.33494786,163.57,163.52,6.1154]
[1730622826366,23.39164786,163.54,163.48,8.22134786]
[1730622826664,8.22134786,163.5,163.44,6.1184]
[1730622826830,8.22134786,163.51,163.44,14.33974786]
[1730622827244,8.22134786,163.51,163.45,8.22134786]
[1730622827643,8.22134786,163.52,163.46,8.22134786]
[1730622828546,8.22134786,163.51,163.45,8.22134786]
[1730622830257,8.22134786,163.51,163.45,14.33924786]
[1730622830566,14.33714786,163.51,163.45,14.33924786]
[1730622831263,6.1151,163.53,163.48,8.22134786]
[1730622831560,14.33644786,163.53,163.47,8.22134786]
[1730622831761,8.22134786,163.52,163.47,8.22134786]
[1730622832459,8.22134786,163.52,163.47,14.33854786]
[1730622833856,14.33644786,163.53,163.47,14.33854786]
[1730622835158,8.22134786,163.52,163.47,14.33854786]
[1730622837573,14.33644786,163.53,163.47,14.33854786]
[1730622838467,8.22134786,163.53,163.47,14.33854786]
[1730622839069,14.33644786,163.53,163.47,14.33854786]
[1730622840369,14.33644786,163.53,163.47,8.22134786]
[1730622841357,14.33644786,163.53,163.47,14.33844786]
[1730622841966,14.33604786,163.54,163.48,8.22134786]
[1730622842362,6.1147,163.54,163.49,8.22134786]
[1730622842562,14.33604786,163.54,163.48,8.22134786]
[1730622843152,20.85884786,163.61,163.53,8.22134786]
[1730622843353,20.85884786,163.61,163.55,8.22134786]
[1730622843577,8.22134786,163.6,163.54,8.22134786]
[1730622843776,8.22134786,163.6,163.48,16.5752]
[1730622843777,8.22134786,163.57,163.52,8.22134786]
[1730622844253,8.22134786,163.57,163.49,6.1165]